Cogmind - Beta 12 @@@ ROGUE MODE // 2023.05.24 @ 18:56:08 Player: Chloroform Result: Self-destructed Performance ------------- Evolutions (2) 1000 Regions Visited (4) 800 Robots Destroyed (32) 160 Value Destroyed (729) 729 Prototype IDs (2) 40 Alien Tech Used (0) 0 Bonus (180) 180 TOTAL SCORE: 2909 Bonus ------- High Alert Combat Kills 12 Follower Combat Kills 168 Cogmind --------- Core Integrity 550/550 Matter 264/300 Energy 275/275 System Corruption 0% Temperature Cool (0) Movement Walking (120) Location -8/Materials Parts ------- > --- POWER (2) -------- Ion Engine Light Ion Engine > --- PROPULSION (4) --- Aluminum Leg Aluminum Leg Aluminum Leg Aluminum Leg > --- UTILITY (2) ------ Medium Storage Unit Sensor Array > --- WEAPON (3) ------- Assault Rifle Assault Rifle Autogun > --- INVENTORY (10) --- Light Ion Engine Improved Ion Engine Improved Ion Engine Aluminum Leg Aluminum Leg Small Storage Unit Shotgun Mini Grenade Launcher Peak State ------------ > --- POWER ------------ Ion Engine Light Ion Engine > --- PROPULSION ------- Aluminum Leg Aluminum Leg Aluminum Leg Aluminum Leg > --- UTILITY ---------- Medium Storage Unit Sensor Array > --- WEAPON ----------- Assault Rifle Assault Rifle Autogun > --- INVENTORY -------- Light Ion Engine Improved Ion Engine Improved Ion Engine Aluminum Leg Aluminum Leg Small Storage Unit Shotgun Mini Grenade Launcher [Rating: 13] Favorites ----------- Power Ion Engine Engine Ion Engine Propulsion Aluminum Leg Leg Aluminum Leg Utility Small Storage Unit Device Sensor Array Storage Small Storage Unit Weapon Assault Rifle Ballistic Gun Assault Rifle Special Melee Weapon Datajack Build | -11 -10 -10 -9 -8 ------- Run | Jun Mat Min Mat Mat Slots Evolved 4 | . . . 2 2 Power 1 | . . . . 1 Propulsion 2 | . . . 1 1 Utility . | . . . . . Weapon 1 | . . . 1 . Parts Attached 21 | . 10 1 8 2 Power 1 | . . . . 1 Engine 1 | . . . . 1 Core . | . . . . . Reactor . | . . . . . Propulsion 4 | . 1 . 2 1 Treads . | . . . . . Leg 4 | . 1 . 2 1 Wheel . | . . . . . Hover . | . . . . . Flight . | . . . . . Utility 4 | . 2 . 2 . Device 3 | . 2 . 1 . Storage 1 | . . . 1 . Processor . | . . . . . Hackware . | . . . . . Protection . | . . . . . Artifact . | . . . . . Weapon 12 | . 7 1 4 . Energy Gun . | . . . . . Energy Cannon . | . . . . . Ballistic Gun 11 | . 7 . 4 . Ballistic Cannon . | . . . . . Launcher . | . . . . . Special Weapon . | . . . . . Impact Weapon . | . . . . . Slashing Weapon . | . . . . . Piercing Weapon . | . . . . . Special Melee Weapon 1 | . . 1 . . Unidentified Prototypes . | . . . . . Parts Lost 2 | . . . 2 . Power . | . . . . . Propulsion 1 | . . . 1 . Utility . | . . . . . Weapon 1 | . . . 1 . Highest Loss Streak 1 | . . . 1 . To Critical Strikes . | . . . . . Average Slot Usage (%) 99 | . 99 100 98 100 Engine 13 | . 14 14 11 18 Leg 29 | . 28 28 32 36 Device 12 | . 13 14 10 9 Storage 12 | . 14 14 11 9 Ballistic Gun 29 | . 28 27 33 27 Naked Turns . | . . . . . Heaviest Build 26 | 14 17 16 24 26 Greatest Support 40 | 20 20 20 30 40 Greatest Overweight (x) 1 | . . . 1 . Average Overweight (x) . | . . . . . Largest Inventory Capacity 10 | 8 8 8 10 10 Average Capacity 8 | 8 8 8 9 10 Most Carried 10 | 6 8 8 10 9 Average Carried 7 | 6 7 7 8 8 Final Capacity 10 | 8 8 8 10 10 Final Carried 10 | 6 8 8 10 8 Class Distribution -------------------- 66% | Mutant 31% | Skirmisher Dominant Class ---------------- Mutant | -10/Materials Mutant | -10/Mines Skirmisher | -9/Materials Skirmisher | -8/Materials Resources | -11 -10 -10 -9 -8 ----------- Run | Jun Mat Min Mat Mat Matter Collected 895 | 200 202 109 384 . Remotely 158 | . 158 . . . Salvage Created 899 | . 319 47 533 . Parts 80 | . 29 6 45 . Haulers Intercepted . | . . . . . Recyclers Shooed 1 | . 1 . . . Parts Field Recycled . | . . . . . Retrieved Matter . | . . . . . Parts Self-Destructed . | . . . . . Prevented . | . . . . . Kills | -11 -10 -10 -9 -8 ------- Run | Jun Mat Min Mat Mat Combat Hostiles Destroyed 25 | . 8 3 14 . Guns 25 | . 8 3 14 . Classes Destroyed 8 | . 6 . 2 . Worker 2 | . 1 . 1 . Builder 1 | . . . 1 . Recycler 1 | . 1 . . . Operator 1 | . 1 . . . Watcher 2 | . 1 . 1 . Swarmer 10 | . 3 3 4 . Grunt 13 | . 5 . 8 . Sentry 2 | . . . 2 . Best Kill Streak 8 | . 8 3 4 . Combat Bots Only 6 | . 6 3 3 . Max Kills in Single Turn 1 | . 1 1 1 . Gunslinging . | . . . . . Exploded . | . . . . . Melee . | . . . . . Uniques/NPCs Destroyed . | . . . . . Combat | -11 -10 -10 -9 -8 -------- Run | Jun Mat Min Mat Mat Damage Taken 625 | . 153 76 396 . Core 50 | . 18 16 16 . Absorbed by Shields . | . . . . . Regen/Repaired (Parts) 14 | . . . 14 . Core Remaining (%) 94 | 100 . 86 96 . Volleys Fired 54 | . 20 6 28 . Largest 3 | . 2 2 3 . Hottest 66 | . 46 43 66 . Shots Fired 136 | . 40 12 84 . Gun 136 | . 40 12 84 . Cannon . | . . . . . Launcher . | . . . . . Special . | . . . . . Kinetic 136 | . 40 12 84 . Thermal . | . . . . . Explosive . | . . . . . Electromagnetic . | . . . . . Robot Hit Streak 9 | . 9 5 6 . Robot Miss Streak 5 | . 4 4 5 . Penetration Max . | . . . . . Secondary Targets 2 | . . 1 1 . Max Gunslinging Chain 1 | . . 1 1 . Shots Hit Robots 75 | . 26 6 43 . Core Hits 49 | . 20 3 26 . Critical Kills 1 | . . . 1 . Critical Parts Destroyed 1 | . . . 1 . Critical Strikes 2 | . . . 2 . Destroy 2 | . . . 2 . Melee Attacks . | . . . . . Impact . | . . . . . Slashing . | . . . . . Piercing . | . . . . . Sneak Attacks . | . . . . . Combat Hostiles . | . . . . . Follow-up Attacks . | . . . . . Damage Inflicted 1116 | . 379 83 654 . Guns 1116 | . 379 83 654 . Cannons . | . . . . . Explosions . | . . . . . Melee . | . . . . . Ramming . | . . . . . Kinetic 1116 | . 379 83 654 . Thermal . | . . . . . Explosive . | . . . . . Electromagnetic . | . . . . . Impact . | . . . . . Slashing . | . . . . . Piercing . | . . . . . Highest Corruption 2 | . 2 2 1 . Average Corruption 1 | . 2 2 1 . Corruption Purged . | . . . . . Corruption Blocked . | . . . . . Effects 11 | . 3 6 2 . Message Errors 2 | . 1 1 . . Matter Fused 4 | . 1 3 . . Heat Flow Errors 2 | . . 2 . . Energy Discharges 1 | . 1 . . . Data Loss (minor) 2 | . . . 2 . Overload Shots . | . . . . . Overflow Damage . | . . . . . Projectiles . | . . . . . Explosions . | . . . . . Melee . | . . . . . Knockbacks . | . . . . . Impact . | . . . . . Kinetic . | . . . . . Secondary . | . . . . . Self-Inflicted Damage . | . . . . . Shots . | . . . . . Rammed . | . . . . . Targets Rammed . | . . . . . Kicked . | . . . . . Crushed . | . . . . . Highest Temperature 194 | . 4 194 26 . Average Temperature 31 | . 1 86 7 . Received Heat Transfer 204 | . 69 . 135 . Siege Activations . | . . . . . Robots Corrupted . | . . . . . Combat Hostiles . | . . . . . Parts Fried . | . . . . . Impact Corruptions . | . . . . . Robots Melted . | . . . . . Combat Hostiles . | . . . . . Parts Melted . | . . . . . Heat Transferred . | . . . . . Parts Sabotaged . | . . . . . Parts Stolen . | . . . . . Parts Stripped . | . . . . . Power Chain Reactions . | . . . . . Missiles Intercepted . | . . . . . Alert | -11 -10 -10 -9 -8 ------- Run | Jun Mat Min Mat Mat Peak Influence 497 | . 258 138 497 166 Initial 166 | . . 53 53 166 Average 188 | . 151 135 277 166 Maximum Alert Level 2 | . 1 . 2 . Low Security (%) 57 | 100 59 100 28 100 Level 1 39 | . 40 . 62 . Level 2 3 | . . . 9 . Level 3 . | . . . . . Level 4 . | . . . . . Level 5 . | . . . . . High Security . | . . . . . Max Security . | . . . . . Squads Dispatched 4 | . 1 . 3 . Investigation 1 | . . . 1 . Extermination . | . . . . . Reinforcement 3 | . 1 . 2 . Assault . | . . . . . Garrison . | . . . . . Intercept . | . . . . . Searches Triggered . | . . . . . Construction Impeded . | . . . . . Haulers Reinforced . | . . . . . Active Scanning Responses . | . . . . . Cargo Convoy Interrupts . | . . . . . Stealth | -11 -10 -10 -9 -8 --------- Run | Jun Mat Min Mat Mat Distress Signals 5 | . . . 5 . Communications Jammed . | . . . . . Distress Signals . | . . . . . Times Spotted 45 | . 15 3 27 . Peak Tracking Total 6 | . 4 3 6 . Tactical Retreats 5 | . 2 . 3 . Traps | -11 -10 -10 -9 -8 ------- Run | Jun Mat Min Mat Mat Traps Triggered 3 | . 1 . 2 . Indirectly . | . . . . . Trap Hack Attempts . | . . . . . Triggered . | . . . . . Disarmed . | . . . . . Reprogrammed . | . . . . . Reused . | . . . . . Traps Extracted . | . . . . . Installed . | . . . . . Triggered . | . . . . . Machines | -11 -10 -10 -9 -8 ---------- Run | Jun Mat Min Mat Mat Machines Disabled 1 | . . 1 . . Max in Single Turn 1 | . . 1 . . Machines Repaired . | . . . . . Machines Sabotaged . | . . . . . Overloaded Fab Kills . | . . . . . Hacking | -11 -10 -10 -9 -8 --------- Run | Jun Mat Min Mat Mat Machines Accessed 7 | . 5 . 2 . Terminals 6 | . 5 . 1 . Fabricators . | . . . . . Repair Stations 1 | . . . 1 . Recycling Units . | . . . . . Scanalyzers . | . . . . . Garrison Access . | . . . . . Total Hacks 19 | . 13 . 6 . Successful 14 | . 9 . 5 . Failed 5 | . 4 . 1 . Catastrophic . | . . . . . Database Lockouts . | . . . . . Manual . | . . . . . Terminals 16 | . 13 . 3 . Fabricators . | . . . . . Repair Stations 3 | . . . 3 . Recycling Units . | . . . . . Scanalyzers . | . . . . . Garrison Access . | . . . . . Terminal Hacks 12 | . 9 . 3 . Record 6 | . 5 . 1 . Prototype ID Bank 1 | . . . 1 . Emergency Access Points 1 | . . . 1 . Alert Level 1 | . 1 . . . Locate Traps 1 | . 1 . . . Zone Layout 2 | . 2 . . . Fabricator Hacks . | . . . . . Repair Station Hacks 2 | . . . 2 . Scan Component 1 | . . . 1 . Repair 1 | . . . 1 . Recycling Unit Hacks . | . . . . . Scanalyzer . | . . . . . Garrison Access Hacks . | . . . . . Unauthorized Hacks . | . . . . . Terminals . | . . . . . Fabricators . | . . . . . Repair Stations . | . . . . . Recycling Units . | . . . . . Scanalyzers . | . . . . . Garrison Access . | . . . . . Data Cores Recovered 1 | . 1 . . . Used . | . . . . . Hacking Detections 3 | . 1 . 2 . Full Trace Events 1 | . . . 1 . Feedback Events . | . . . . . Feedback Blocked . | . . . . . Robot Schematics Acquired . | . . . . . Robots Built . | . . . . . Authchips . | . . . . . Time . | . . . . . Total Robot Build Rating . | . . . . . Part Schematics Acquired . | . . . . . Parts Built . | . . . . . Authchips . | . . . . . Time . | . . . . . Total Part Build Rating . | . . . . . Parts Repaired 1 | . . . 1 . Time 26 | . . . 26 . Parts Recycled . | . . . . . Recycled Matter . | . . . . . Retrieved Matter . | . . . . . Retrieved Components . | . . . . . Parts Scanalyzed . | . . . . . Part Schematics Acquired . | . . . . . Parts Damaged . | . . . . . Bothacking | -11 -10 -10 -9 -8 ------------ Run | Jun Mat Min Mat Mat Used RIF Installer . | . . . . . Robots Hacked . | . . . . . Non-combat . | . . . . . Combat . | . . . . . Robot Hacks Applied . | . . . . . Relay Couplers Released . | . . . . . Fabnet Peak Effective % . | . . . . . Robots Rewired . | . . . . . Allies Hacked . | . . . . . Hacks Repelled . | . . . . . Allies | -11 -10 -10 -9 -8 -------- Run | Jun Mat Min Mat Mat Total Allies 3 | . . 3 . . Largest Group 3 | . . 3 3 . Highest-Rated Group 40 | . . 40 40 . Highest-Rated Ally 16 | . . 16 16 . Total Orders 1 | . . . 1 . GUARD 1 | . . . 1 . Ally Attacks 44 | . . . 44 . Total Damage 444 | . . . 444 . Kills 8 | . . . 8 . Allies Corrupted . | . . . . . Allies Melted . | . . . . . Intel | -11 -10 -10 -9 -8 ------- Run | Jun Mat Min Mat Mat Robot Analysis Total . | . . . . . Derelict Logs Recovered 1 | . . 1 . . Drone Launches . | . . . . . Drone Recoveries . | . . . . . Exploration | -11 -10 -10 -9 -8 ------------- Run | Jun Mat Min Mat Mat Turns Passed 1605 | 15 732 306 533 19 Spaces Moved 1032 | 1 488 238 291 14 Core . | . . . . . Treads . | . . . . . Legs 1032 | 1 488 238 291 14 Wheels . | . . . . . Hover . | . . . . . Flight . | . . . . . Fastest Speed 120 | 120 120 120 120 120 Average Speed 120 | 120 120 120 121 120 Slowest Speed 190 | 120 120 120 190 120 Overloaded Moves . | . . . . . Propulsion Burnouts . | . . . . . Robots Hopped . | . . . . . Cave-ins Triggered . | . . . . . Exploration Rate (%) 28 | 2 71 38 28 3 Regions Visited 4 Branch Regions 1 Pre-discovered Areas 1 | . . 1 . . Known Exits Taken . | . . . . . Unknown Exits Taken 4 | 1 1 1 1 . Scrap Searched 1 | . . 1 . . Spaces Dug . | . . . . . Terrain Destroyed . | . . . . . Melee . | . . . . . Projectile . | . . . . . AOE . | . . . . . Terrain Rammed . | . . . . . Walls Destroyed . | . . . . . Machines Disabled . | . . . . . Actions | -11 -10 -10 -9 -8 --------- Run | Jun Mat Min Mat Mat Total 1284 | 15 596 246 411 16 Wait 143 | 15 52 . 76 . Move 1028 | . 487 237 290 14 Hop . | . . . . . Pick Up 23 | . 14 1 8 . Fast Attach 2 | . 2 . . . Attach 7 | . . . 5 2 Detach . | . . . . . Swap 12 | . 8 1 3 . Drop 15 | . 13 1 1 . Fire 54 | . 20 6 28 . Melee . | . . . . . Ram . | . . . . . Kick . | . . . . . Crush . | . . . . . Escape Stasis . | . . . . . Rewire . | . . . . . Trap . | . . . . . Miscellaneous . | . . . . . Route ------- -11/Junkyard -10/Materials (discovered 3 exits: *Mat x2 / [*Min]) -10/Mines -9/Materials (discovered 2 exits: [*Mat] / [*Min]) -8/Materials History --------- Turn | Location | Event 12 | -11/Junkyard | Discovered new exit (range 2) 16 | -11/Junkyard | Entered Materials 317 | -10/Materials | Build established: Mutant 381 | -10/Materials | Discovered new exit (range 10) 518 | -10/Materials | Discovered new exit (range 8) 739 | -10/Materials | Discovered new exit (range 7) 748 | -10/Materials | Entered Mines 749 | -10/Mines | Met a Derelict bent on vengeance 801 | -10/Mines | Learned location of Zion (-6) 963 | -10/Mines | Discovered new exit (range 12) 1044 | -10/Mines | Assisted by bots powering up and referring to "LRC-V3" 1054 | -10/Mines | Entered Materials 1054 | -9/Materials | Accompanied by 3 allies 1054 | -9/Materials | Evolved 2 slots: Propulsion x1, Weapon x1 1058 | -9/Materials | Discovered new exit (range 8) 1239 | -9/Materials | Discovered new exit (range 11) 1354 | -9/Materials | Repaired Sensor Array 1587 | -9/Materials | Entered another Materials area 1587 | -8/Materials | Evolved 2 slots: Power x1, Propulsion x1 1606 | -8/Materials | Self-destructed Last Messages --------------- 01491_ System corrupted: Component data lost. 01493_ Acquired Imp. Ion Engine. 01503_ Acquired 3 matter. 01517_ Shotgun destroyed. 01519_ W-16 Scout destroyed. 01521_ K-01 Serf collects debris. 01529_ Acquired 20 matter. 01529_ K-01 Serf cleans the Matter Pump. 01533_ K-01 Serf collects debris. 01534_ K-01 Serf cleans the Matter Pump. 01550_ Y-45 Defender destroyed. 01554_ K-01 Serf collects debris. 01558_ Acquired 4 matter. 01560_ Acquired Aluminum Leg. 01561_ K-01 Serf collects debris. 01572_ Dropped Datajack. 01576_ Acquired Mni. Grenade Launcher. PARAMETERS=POWER+1,PROPULSION+1 LOCATION=UNKNOWN GOAL=ESCAPE Map ----- +----------------------------------------------------+ | ????????????????????????????????? | | ????????????????????????????????? | | ????????????????????????????????? | | ????????????????????????????????? | | ????????????????????????????????? | | ????????????????????????????????? | | ????????????????????????????????? | | ????????????????????????????????? | | ????????????????????????????????? | | ????????????????????????????????? | | ????????????????????????????????? | | ???????????? ???????????????????? | | ???????????# ###????????????????? | | ??????????? ????????????????? | | ??????????? ?????????????????? | | ??????????? ?????????????????? | | ??????????? #?????????????????? | | ??????????# #?????????????????? | | ??????????# #?????????????????? | | ??????????# #?????????????????? | | ??????????+ #?????????????????? | | ???????#### #?????????????????? | | ??????##! #?????????????????? | | ??????#! #?????????????????? | | ??????#! #?????????????????? | | ??????#!@ #?????????????????? | | ??????#! #?????????????????? | | ??????##! #?????????????????? | | ???????#### #?????????????????? | | ??????????# ###########???????? | | ??????????# # #???????? | | ??????????# # #???????? | | ??????????# # #???????? | | ??????????# # #???????? | | ??????????# + #???????? | | ??????????# # #???????? | | ??????????# # #???????? | | ??????????# # #???????? | | ??????????###############???????? | | ????????????????????????????????? | | ????????????????????????????????? | | ????????????????????????????????? | | ????????????????????????????????? | | | | | | | | | | | | | | | +----------------------------------------------------+ Best States ------------- Heat Dissipation 31 Energy Generation 15 Energy Capacity 275 Matter Stores 300 Matter Capacity 300 Sight Range 16 Robot Scan Range 14 Terrain Scan Density 10 Evasion (%) 55 Item Schematics ----------------- None Robot Schematics ------------------ None Fabricated ------------ Nothing Alien Tech Used ----------------- None Achievements -------------- None Challenges ------------ None Game ------ Seed AssaultFlyingEdition Manual? 0 Play Time 00:17:49 Cumulative 5.3 hours Start 2023.05.24 @ 16:55:02 End 2023.05.24 @ 18:56:08 Sessions 3 Manual Loads 0 Difficulty Rogue Special Mode None Game No. 5 Rogue 5 Adventurer 0 Explorer 0 Win Type - Total 0 Types 0/0/0/0/0/0/0/0/0 Lore% 5 Gallery% 14 Achievement% 21 Wizard Run 0 Options --------- ASCII 0 Keyboard 1 Movement Mouse Keybinds 0 Fullscreen 1 Font 18/SmallcapsGlow Map View 76x50 Tactical HUD 1 Map Filters NONE Filters NONE Steam 1 RUN: a16f33ae-54cf-4057-b5ef-d333ef6c1356